fUSD/lending_fUSD_20250308
["ID","MTS","AMOUNT","RATE_DAILY","PERIOD"]
[355654771,1741440638818,-500.0,8.219e-05,2]
[355654773,1741440638827,-500.0,8.219e-05,2]
[355654775,1741440638837,-500.0,8.219e-05,2]
[355654777,1741440638849,-500.0,8.219e-05,2]
[355654779,1741440638858,-500.0,8.219e-05,2]
[355654781,1741440638868,-500.0,8.219e-05,2]
[355654783,1741440638877,-500.0,8.219e-05,2]
[355654785,1741440638886,-500.0,8.219e-05,2]
[355654787,1741440638896,-500.0,8.219e-05,2]
[355654789,1741440638905,-500.0,8.219e-05,2]
[355654791,1741440638915,-509.26629824,8.219e-05,2]
[355654793,1741440638924,-538.39096915,8.219e-05,2]
[355654795,1741440638934,-500.0,8.219e-05,2]
[355654797,1741440638943,-500.0,8.219e-05,2]
[355654799,1741440638953,-377.42179147,8.219e-05,2]
[355654801,1741440638962,-500.0,8.219e-05,2]
[355654803,1741440638972,-500.0,8.219e-05,2]
[355654805,1741440638982,-761.65,8.219e-05,2]
[355654807,1741440638991,-500.0,8.219e-05,2]
[355654809,1741440639000,-621.32,8.219e-05,2]
[355654811,1741440639009,-500.0,8.219e-05,2]
[355654813,1741440639019,-500.0,8.219e-05,2]
[355654815,1741440639028,-500.0,8.219e-05,2]
[355654817,1741440639037,-500.0,8.219e-05,2]
[355654819,1741440639046,-500.0,8.219e-05,2]
[355654821,1741440639056,-500.0,8.219e-05,2]
[355654823,1741440639065,-500.0,8.219e-05,2]
[355654825,1741440639075,-500.0,8.219e-05,2]
[355654827,1741440639084,-507.36217754,8.219e-05,2]
[355654829,1741440639093,-406.03964726,8.219e-05,2]
[355654832,1741440639110,-93.96035274,8.219e-05,2]
[355654834,1741440639120,-500.0,8.219e-05,2]
[355654836,1741440639130,-307.68964726,8.219e-05,2]
[355654872,1741440640370,-395.91035274,8.219e-05,2]
[355654873,1741440640379,-500.0,8.219e-05,2]
[355654874,1741440640389,-500.0,8.219e-05,2]
[355654875,1741440640399,-745.26,8.219e-05,2]
[355654876,1741440640408,-500.0,8.219e-05,2]
[355654877,1741440640417,-500.0,8.219e-05,2]
[355654878,1741440640426,-500.0,8.219e-05,2]
[355654879,1741440640435,-500.0,8.219e-05,2]
[355654880,1741440640446,-500.0,8.219e-05,2]
[355654881,1741440640456,-500.0,8.219e-05,2]
[355654882,1741440640465,-676.68,8.219e-05,2]
[355654883,1741440640475,-500.0,8.219e-05,2]
[355654884,1741440640484,-500.0,8.219e-05,2]
[355654885,1741440640494,-500.0,8.219e-05,2]
[355654886,1741440640504,-500.0,8.219e-05,2]
[355654887,1741440640513,-500.0,8.219e-05,2]
[355654888,1741440640523,-500.0,8.219e-05,2]
[355654889,1741440640533,-500.86465872,8.219e-05,2]
[355654890,1741440640542,-500.0,8.219e-05,2]
[355654891,1741440640553,-500.0,8.219e-05,2]
[355654892,1741440640563,-500.0,8.219e-05,2]
[355654893,1741440640572,-500.0,8.219e-05,2]
[355654894,1741440640582,-500.0,8.219e-05,2]
[355654895,1741440640592,-514.2,8.219e-05,2]
[355654896,1741440640602,-500.0,8.219e-05,2]
[355654897,1741440640611,-500.0,8.219e-05,2]
[355654898,1741440640621,-501.80987211,8.219e-05,2]
[355654899,1741440640631,-500.0,8.219e-05,2]
[355654900,1741440640641,-500.0,8.219e-05,2]
[355654901,1741440640650,-500.0,8.219e-05,2]
[355654902,1741440640660,-536.32,8.219e-05,2]
[355654903,1741440640670,-703.26,8.219e-05,2]
[355654904,1741440640680,-500.0,8.219e-05,2]
[355654905,1741440640690,-500.0,8.219e-05,2]
[355654906,1741440640699,-500.0,8.219e-05,2]
[355654907,1741440640708,-504.92009545,8.219e-05,2]
[355654908,1741440640718,-500.0,8.219e-05,2]
[355654909,1741440640727,-551.64,8.219e-05,2]
[355654910,1741440640737,-500.0,8.219e-05,2]
[355654911,1741440640746,-278.95353199,8.219e-05,2]
[355654912,1741440640756,-500.0,8.219e-05,2]
[355654913,1741440640766,-500.0,8.219e-05,2]
[355654914,1741440640775,-500.0,8.219e-05,2]
[355654915,1741440640785,-500.0,8.219e-05,2]
[355654916,1741440640795,-500.0,8.219e-05,2]
[355654917,1741440640804,-500.0,8.219e-05,2]
[355654918,1741440640814,-500.0,8.219e-05,2]
[355654919,1741440640823,-306.58302206,8.219e-05,2]
[355654920,1741440640833,-500.0,8.219e-05,2]
[355654921,1741440640842,-500.0,8.219e-05,2]
[355654922,1741440640851,-682.36,8.219e-05,2]
[355654923,1741440640861,-104.93846695,8.219e-05,2]
[355654938,1741440643250,-596.6524683,8.219e-05,2]
[355654939,1741440643259,-526.27,8.219e-05,2]
[355654940,1741440643269,-500.0,8.219e-05,2]
[355654941,1741440643279,-500.0,8.219e-05,2]
[355654942,1741440643288,-500.0,8.219e-05,2]
[355654943,1741440643298,-500.0,8.219e-05,2]
[355654944,1741440643307,-500.0,8.219e-05,2]
[355654945,1741440643316,-500.0,8.219e-05,2]
[355654946,1741440643325,-500.0,8.219e-05,2]
[355654947,1741440643334,-500.0,8.219e-05,2]
[355654948,1741440643343,-509.52365139,8.219e-05,2]
[355654949,1741440643352,-500.0,8.219e-05,2]
[355654950,1741440643361,-500.0,8.219e-05,2]
[355654951,1741440643371,-500.0,8.219e-05,2]
[355654952,1741440643381,-500.0,8.219e-05,2]
[355654953,1741440643390,-536.0,8.219e-05,2]
[355654954,1741440643400,-700.01,8.219e-05,2]
[355654955,1741440643409,-500.0,8.219e-05,2]
[355654956,1741440643419,-500.0,8.219e-05,2]
[355654957,1741440643428,-500.0,8.219e-05,2]
[355654958,1741440643437,-500.0,8.219e-05,2]
[355654959,1741440643446,-500.0,8.219e-05,2]
[355654960,1741440643456,-500.0,8.219e-05,2]
[355654962,1741440643465,-500.0,8.219e-05,2]
[355654964,1741440643475,-610.85,8.219e-05,2]
[355654966,1741440643484,-91.99513454,8.219e-05,2]
[355654985,1741440644841,-408.00486546,8.219e-05,2]
[355654986,1741440644851,-689.54,8.219e-05,2]
[355654987,1741440644860,-537.07,8.219e-05,2]
[355654988,1741440644870,-500.0,8.219e-05,2]
[355654989,1741440644880,-500.0,8.219e-05,2]
[355654990,1741440644890,-522.25108223,8.219e-05,2]
[355654991,1741440644900,-1177.78,8.219e-05,2]
[355654992,1741440644912,-500.0,8.219e-05,2]
[355654993,1741440644922,-582.3327356,8.219e-05,2]
[355654994,1741440644931,-500.0,8.219e-05,2]
[355654995,1741440644940,-500.0,8.219e-05,2]
[355654996,1741440644950,-500.0,8.219e-05,2]
[355654997,1741440644959,-500.0,8.219e-05,2]
[355654998,1741440644968,-500.0,8.219e-05,2]
[355654999,1741440644977,-1239.16151045,8.219e-05,2]
[355655002,1741440645587,-496.25848955,8.219e-05,2]
[355655003,1741440645597,-500.0,8.219e-05,2]
[355655004,1741440645607,-115.74151003,8.219e-05,2]
[355655005,1741440645763,-840.62198561,8.219e-05,2]
[355655055,1741440658294,3872.6170088,7.845e-05,2]
[355655056,1741440658318,10000.0,7.845e-05,2]
[355655057,1741440658339,10000.0,7.845e-05,2]
[355655058,1741440658361,5549.87244239,7.845e-05,2]
[355655065,1741440737814,50000.0,0.00025895,30]
[355655066,1741440741249,50000.0,0.00025895,31]
[355655067,1741440745051,50000.0,0.00025895,32]
[355655068,1741440748564,50000.0,0.00025895,33]
[355655069,1741440752467,50000.0,0.00025895,34]
[355655070,1741440755850,50000.0,0.00025895,35]
[355655071,1741440764123,50000.0,0.00025895,36]
[355655072,1741440767811,50000.0,0.00025895,37]
[355655073,1741440771072,50000.0,0.00025895,38]
[355655074,1741440775064,50000.0,0.00025895,39]
[355655075,1741440808916,400.0,7.9e-05,2]
[355655076,1741440810931,900.0,8e-05,2]
[355655077,1741440854943,5000.0,0.00025895,120]
[355655078,1741440988758,181.85,7.54e-05,2]
[355655080,1741441102621,2968.27755761,7.483e-05,2]
[355655081,1741441102643,10000.0,7.483e-05,2]
[355655082,1741441102664,10000.0,7.483e-05,2]
[355655083,1741441102686,931.72244239,7.483e-05,2]
[355655084,1741441109521,1181.461,8.055e-05,2]
[355655085,1741441109562,166.743,8.055e-05,2]
[355655086,1741441136281,168.3,7.707e-05,2]
[355655087,1741441329315,50000.0,0.00025896,30]
[355655088,1741441333220,50000.0,0.00025896,31]
[355655089,1741441336244,50000.0,0.00025896,32]
[355655090,1741441339706,50000.0,0.00025896,33]
[355655091,1741441342640,50000.0,0.00025896,34]
[355655092,1741441346086,50000.0,0.00025896,35]
[355655093,1741441349409,50000.0,0.00025896,36]
[355655094,1741441352804,50000.0,0.00025896,37]
[355655095,1741441356124,50000.0,0.00025896,38]
[355655096,1741441359859,50000.0,0.00025896,39]
[355655097,1741441464751,35069.18278825,0.00025896,30]
[355655098,1741441474054,153.0,8e-05,120]
[355655116,1741441639952,400.0,7.9e-05,2]
[355655117,1741441641880,800.0,8e-05,2]
[355655123,1741441652428,322.4278034,8.013e-05,2]
[355655124,1741441699098,150.19,7.466e-05,2]
[355655125,1741441699318,150.19,7.507e-05,2]
[355655126,1741441699625,150.19,7.548e-05,2]
[355655127,1741441699824,150.19,7.589e-05,2]
[355655128,1741441700027,150.19,7.629e-05,2]
[355655129,1741441700234,150.19,7.67e-05,2]
[355655130,1741441700641,150.19,7.711e-05,2]
[355655131,1741441700845,150.19,7.751e-05,2]
[355655132,1741441701061,150.19,7.792e-05,2]
[355655133,1741441701255,150.19,7.833e-05,2]
[355655134,1741441701509,150.19,7.874e-05,2]
[355655135,1741441701733,150.19,7.914e-05,2]
[355655145,1741441831706,-500.0,8.192e-05,2]
[355655146,1741441831716,-150.0,8.192e-05,2]
[355655147,1741441831726,-550.0,8.2e-05,2]
[355655148,1741441831735,-1579.63621602,8.209e-05,2]
[355655149,1741441831747,-3223.68334044,8.209e-05,2]
[355655150,1741441831756,-300.0,8.217e-05,2]
[355655151,1741441831766,-937.82461428,8.218e-05,2]
[355655152,1741441831775,-500.0,8.218e-05,2]
[355655153,1741441831785,-500.0,8.218e-05,2]
[355655154,1741441831795,-260.26184154,8.218e-05,2]
[355655155,1741441831805,-538.60154249,8.218e-05,2]
[355655156,1741441831815,-1926.27087053,8.218e-05,2]
[355655157,1741441831825,-150.0,8.218e-05,2]
[355655158,1741441831835,-500.0,8.219e-05,2]
[355655159,1741441831844,-500.0,8.219e-05,2]
[355655160,1741441831852,-97.86581235,8.219e-05,2]
[355655161,1741441831864,-377.75318295,8.219e-05,2]
[355655162,1741441831874,-551.63,8.219e-05,2]
[355655163,1741441831884,-653.84,8.219e-05,2]
[355655164,1741441831895,-514.7,8.219e-05,2]
[355655165,1741441831904,-510.86321942,8.219e-05,2]
[355655166,1741441831914,-500.0,8.219e-05,2]
[355655167,1741441831923,-271.19331468,8.219e-05,2]
[355655168,1741441831933,-500.0,8.219e-05,2]
[355655169,1741441831943,-500.0,8.219e-05,2]
[355655170,1741441831952,-500.0,8.219e-05,2]
[355655171,1741441831962,-154.69497368,8.219e-05,2]
[355655172,1741441831992,-345.30502632,8.219e-05,2]
[355655173,1741441832002,-459.61851367,8.219e-05,2]
[355655202,1741441839748,-40.38148633,8.219e-05,2]
[355655203,1741441839758,-500.0,8.219e-05,2]
[355655204,1741441839768,-500.0,8.219e-05,2]
[355655205,1741441839778,-500.0,8.219e-05,2]
[355655206,1741441839791,-500.0,8.219e-05,2]
[355655207,1741441839800,-500.0,8.219e-05,2]
[355655208,1741441839809,-738.02,8.219e-05,2]
[355655209,1741441839819,-500.0,8.219e-05,2]
[355655210,1741441839829,-500.0,8.219e-05,2]
[355655211,1741441839840,-500.0,8.219e-05,2]
[355655212,1741441839852,-500.0,8.219e-05,2]
[355655213,1741441839868,-500.0,8.219e-05,2]
[355655214,1741441839879,-500.0,8.219e-05,2]
[355655215,1741441839890,-500.0,8.219e-05,2]
[355655216,1741441839901,-500.0,8.219e-05,2]
[355655217,1741441839911,-500.0,8.219e-05,2]
[355655218,1741441839920,-500.0,8.219e-05,2]
[355655219,1741441839930,-500.0,8.219e-05,2]
[355655220,1741441839941,-500.0,8.219e-05,2]
[355655221,1741441839951,-500.0,8.219e-05,2]
[355655222,1741441839962,-601.3010458,8.219e-05,2]
[355655223,1741441839972,-500.0,8.219e-05,2]
[355655224,1741441839982,-500.0,8.219e-05,2]
[355655225,1741441839992,-500.0,8.219e-05,2]
[355655226,1741441840002,-593.78,8.219e-05,2]
[355655227,1741441840013,-500.0,8.219e-05,2]
[355655228,1741441840023,-500.0,8.219e-05,2]
[355655229,1741441840033,-500.0,8.219e-05,2]
[355655230,1741441840043,-500.0,8.219e-05,2]
[355655231,1741441840053,-500.0,8.219e-05,2]
[355655232,1741441840063,-500.0,8.219e-05,2]
[355655233,1741441840074,-501.48112041,8.219e-05,2]
[355655234,1741441840084,-500.0,8.219e-05,2]
[355655235,1741441840094,-500.0,8.219e-05,2]
[355655236,1741441840106,-500.0,8.219e-05,2]
[355655237,1741441840116,-500.0,8.219e-05,2]
[355655238,1741441840126,-544.77,8.219e-05,2]
[355655239,1741441840141,-500.0,8.219e-05,2]
[355655240,1741441840151,-500.0,8.219e-05,2]
[355655241,1741441840162,-500.0,8.219e-05,2]
[355655242,1741441840173,-511.13,8.219e-05,2]
[355655244,1741441840183,-500.0,8.219e-05,2]
[355655245,1741441840193,-500.0,8.219e-05,2]
[355655246,1741441840203,-500.0,8.219e-05,2]
[355655247,1741441840213,-500.0,8.219e-05,2]
[355655248,1741441840222,-500.0,8.219e-05,2]
[355655249,1741441840232,-500.0,8.219e-05,2]
[355655250,1741441840242,-500.0,8.219e-05,2]
[355655251,1741441840252,-500.0,8.219e-05,2]
[355655252,1741441840262,-509.73,8.219e-05,2]
[355655253,1741441840273,-500.0,8.219e-05,2]
[355655254,1741441840283,-500.0,8.219e-05,2]
[355655255,1741441840293,-500.0,8.219e-05,2]
[355655256,1741441840303,-500.0,8.219e-05,2]
[355655257,1741441840312,-500.0,8.219e-05,2]
[355655258,1741441840322,-500.0,8.219e-05,2]
[355655260,1741441840331,-500.0,8.219e-05,2]
[355655262,1741441840342,-508.89054917,8.219e-05,2]
[355655264,1741441840352,-689.29,8.219e-05,2]
[355655266,1741441840362,-500.0,8.219e-05,2]
[355655267,1741441840372,-500.0,8.219e-05,2]
[355655268,1741441840383,-500.66451059,8.219e-05,2]
[355655269,1741441840395,-500.0,8.219e-05,2]
[355655270,1741441840405,-500.0,8.219e-05,2]
[355655271,1741441840416,-500.0,8.219e-05,2]
[355655272,1741441840428,-500.0,8.219e-05,2]
[355655273,1741441840438,-500.0,8.219e-05,2]
[355655274,1741441840447,-500.0,8.219e-05,2]
[355655275,1741441840457,-513.48761727,8.219e-05,2]
[355655276,1741441840467,-500.0,8.219e-05,2]
[355655277,1741441840480,-500.0,8.219e-05,2]
[355655278,1741441840490,-675.53,8.219e-05,2]
[355655279,1741441840499,-500.0,8.219e-05,2]
[355655280,1741441840509,-500.0,8.219e-05,2]
[355655281,1741441840519,-500.0,8.219e-05,2]
[355655282,1741441840530,-500.0,8.219e-05,2]
[355655283,1741441840540,-500.0,8.219e-05,2]
[355655284,1741441840551,-500.0,8.219e-05,2]
[355655285,1741441840561,-500.0,8.219e-05,2]
[355655286,1741441840572,-500.0,8.219e-05,2]
[355655287,1741441840581,-314.38288367,8.219e-05,2]
[355655288,1741441840596,-500.0,8.219e-05,2]
[355655289,1741441840608,-500.0,8.219e-05,2]
[355655290,1741441840618,-500.0,8.219e-05,2]
[355655291,1741441840628,-500.0,8.219e-05,2]
[355655292,1741441840639,-278.73313761,8.219e-05,2]
[355655293,1741441840659,-221.26686239,8.219e-05,2]
[355655294,1741441840670,-245.60066861,8.219e-05,2]
[355655295,1741441840681,-254.39933139,8.219e-05,2]
[355655296,1741441840692,-500.0,8.219e-05,2]
[355655297,1741441840702,-500.0,8.219e-05,2]
[355655298,1741441840712,-500.0,8.219e-05,2]
[355655299,1741441840722,-558.24,8.219e-05,2]
[355655300,1741441840731,-500.0,8.219e-05,2]
[355655301,1741441840741,-524.27635205,8.219e-05,2]
[355655302,1741441840751,-500.0,8.219e-05,2]
[355655303,1741441840762,-500.0,8.219e-05,2]
[355655304,1741441840772,-504.23920041,8.219e-05,2]
[355655305,1741441840782,-500.0,8.219e-05,2]
[355655306,1741441840792,-500.0,8.219e-05,2]
[355655307,1741441840802,-500.0,8.219e-05,2]
[355655308,1741441840811,-500.0,8.219e-05,2]
[355655309,1741441840821,-500.0,8.219e-05,2]
[355655310,1741441840831,-500.71323188,8.219e-05,2]
[355655311,1741441840841,-500.0,8.219e-05,2]
[355655312,1741441840851,-500.0,8.219e-05,2]
[355655313,1741441840861,-531.07064975,8.219e-05,2]
[355655314,1741441840871,-504.48826551,8.219e-05,2]
[355655315,1741441840881,-500.0,8.219e-05,2]
[355655316,1741441840891,-500.0,8.219e-05,2]
[355655317,1741441840901,-500.0,8.219e-05,2]
[355655318,1741441840911,-500.0,8.219e-05,2]
[355655319,1741441840921,-500.0,8.219e-05,2]
[355655320,1741441840931,-500.0,8.219e-05,2]
[355655321,1741441840941,-500.0,8.219e-05,2]
[355655322,1741441840951,-647.21647413,8.219e-05,2]
[355655323,1741441840960,-500.0,8.219e-05,2]
[355655324,1741441840971,-500.0,8.219e-05,2]
[355655325,1741441840981,-589.93,8.219e-05,2]
[355655326,1741441840991,-500.0,8.219e-05,2]
[355655327,1741441841001,-500.0,8.219e-05,2]
[355655328,1741441841011,-500.0,8.219e-05,2]
[355655329,1741441841021,-233.22649487,8.219e-05,2]
[355655330,1741441841633,-266.77350513,8.219e-05,2]
[355655331,1741441841649,-500.0,8.219e-05,2]
[355655332,1741441841664,-500.0,8.219e-05,2]
[355655333,1741441841676,-686.15,8.219e-05,2]
[355655334,1741441841691,-500.0,8.219e-05,2]
[355655335,1741441841720,-664.69,8.219e-05,2]
[355655336,1741441841734,-525.77,8.219e-05,2]
[355655337,1741441841750,-523.11970316,8.219e-05,2]
[355655338,1741441841765,-690.5,8.219e-05,2]
[355655339,1741441841780,-584.32,8.219e-05,2]
[355655340,1741441841795,-503.89844804,8.219e-05,2]
[355655341,1741441841809,-1128.7,8.219e-05,2]
[355655342,1741441841823,-563.24,8.219e-05,2]
[355655343,1741441841837,-312.9891066,8.219e-05,2]
[355655344,1741441841854,-235.9208934,8.219e-05,2]
[355655345,1741441841868,-526.68,8.219e-05,2]
[355655346,1741441841882,-500.0,8.219e-05,2]
[355655347,1741441841897,-500.0,8.219e-05,2]
[355655348,1741441841912,-500.0,8.219e-05,2]
[355655349,1741441841926,-460.24009665,8.219e-05,2]
[355655381,1741441845072,-512.17990335,8.219e-05,2]
[355655382,1741441845082,-255.91386191,8.219e-05,2]
[355655383,1741441845116,-244.08613809,8.219e-05,2]
[355655384,1741441845125,-533.52,8.219e-05,2]
[355655385,1741441845135,-551.52,8.219e-05,2]
[355655386,1741441845145,-543.61,8.219e-05,2]
[355655387,1741441845154,-793.57,8.219e-05,2]
[355655388,1741441845164,-500.0,8.219e-05,2]
[355655389,1741441845174,-708.23,8.219e-05,2]
[355655390,1741441845183,-500.0,8.219e-05,2]
[355655391,1741441845192,-14.8959419,8.219e-05,2]
[355655395,1741441845699,-821.4840581,8.219e-05,2]
[355655396,1741441845709,-618.63336901,8.219e-05,2]
[355655397,1741441845720,-29.90663099,8.219e-05,2]
[355655398,1741441845729,-648.31,8.219e-05,2]
[355655399,1741441845739,-500.0,8.219e-05,2]
[355655400,1741441845748,-232.50603757,8.219e-05,2]
[355655401,1741441845760,-327.983998,8.219e-05,2]
[355655402,1741441845771,-507.27996443,8.219e-05,2]
[355655403,1741441845781,-325.17861397,8.219e-05,2]
[355655404,1741441845793,-580.31138603,8.219e-05,2]
[355655405,1741441845803,-132.46386023,8.219e-05,2]
[355655406,1741441845815,-367.53613977,8.219e-05,2]
[355655407,1741441845825,-500.0,8.219e-05,2]
[355655408,1741441845834,-612.87,8.219e-05,2]
[355655409,1741441845843,-507.26164729,8.219e-05,2]
[355655410,1741441845853,-500.0,8.219e-05,2]
[355655411,1741441845863,-500.0,8.219e-05,2]
[355655412,1741441845873,-394.47588293,8.219e-05,2]
[355655413,1741441845984,-145.92411707,8.219e-05,2]
[355655414,1741441845994,-500.0,8.219e-05,2]
[355655415,1741441846003,-562.24,8.219e-05,2]
[355655416,1741441846012,-500.0,8.219e-05,2]
[355655417,1741441846023,-512.58890109,8.219e-05,2]
[355655418,1741441846033,-500.0,8.219e-05,2]
[355655419,1741441846043,-500.0,8.219e-05,2]
[355655420,1741441846053,-500.0,8.219e-05,2]
[355655421,1741441846063,-613.81,8.219e-05,2]
[355655422,1741441846072,-500.0,8.219e-05,2]
[355655423,1741441846084,-583.43,8.219e-05,2]
[355655424,1741441846094,-974.49,8.219e-05,2]
[355655425,1741441846106,-451.47222813,8.219e-05,2]
[355655426,1741441846170,-48.52777187,8.219e-05,2]
[355655427,1741441846180,-204.41110412,8.219e-05,2]
[355655428,1741441846190,-591.61,8.219e-05,2]
[355655429,1741441846200,-500.0,8.219e-05,2]
[355655430,1741441846210,-500.0,8.219e-05,2]
[355655431,1741441846219,-500.0,8.219e-05,2]
[355655432,1741441846229,-500.0,8.219e-05,2]
[355655433,1741441846238,-500.0,8.219e-05,2]
[355655434,1741441846247,-500.0,8.219e-05,2]
[355655435,1741441846256,-500.0,8.219e-05,2]
[355655436,1741441846266,-500.0,8.219e-05,2]
[355655437,1741441846275,-541.45,8.219e-05,2]
[355655438,1741441846285,-500.0,8.219e-05,2]
[355655439,1741441846294,-500.0,8.219e-05,2]
[355655440,1741441846304,-500.0,8.219e-05,2]
[355655441,1741441846314,-500.0,8.219e-05,2]
[355655442,1741441846323,-500.0,8.219e-05,2]
[355655443,1741441846332,-500.0,8.219e-05,2]
[355655444,1741441846342,-293.60112401,8.219e-05,2]
[355655445,1741441846354,-401.41887599,8.219e-05,2]
[355655446,1741441846364,-500.0,8.219e-05,2]
[355655447,1741441846373,-500.0,8.219e-05,2]
[355655448,1741441846383,-624.61,8.219e-05,2]
[355655449,1741441846392,-500.0,8.219e-05,2]
[355655450,1741441846402,-534.63,8.219e-05,2]
[355655451,1741441846411,-163.11059073,8.219e-05,2]
[355655452,1741441846420,-996.23,8.219e-05,2]
[355655453,1741441846623,-500.0,8.219e-05,2]
[355655454,1741441846633,-500.0,8.219e-05,2]
[355655455,1741441846645,-500.0,8.219e-05,2]
[355655456,1741441846655,-500.0,8.219e-05,2]
[355655457,1741441846665,-584.02667948,8.219e-05,2]
[355655458,1741441846675,-500.0,8.219e-05,7]
[355655459,1741441846685,-500.0,8.219e-05,2]
[355655460,1741441846694,-163.64712767,8.219e-05,2]
[355655461,1741441846704,-766.8,8.219e-05,2]
[355655462,1741441846714,-500.0,8.219e-05,2]
[355655463,1741441846723,-500.0,8.219e-05,2]
[355655464,1741441846733,-500.0,8.219e-05,2]
[355655465,1741441846743,-514.98827061,8.219e-05,2]
[355655466,1741441846752,-500.0,8.219e-05,2]
[355655467,1741441846762,-749.28,8.219e-05,2]
[355655468,1741441846771,-647.38,8.219e-05,2]
[355655469,1741441846781,-1173.64,8.219e-05,2]
[355655470,1741441846791,-506.14077386,8.219e-05,2]
[355655471,1741441846801,-350.0,8.219e-05,2]
[355655472,1741441846811,-500.0,8.219e-05,2]
[355655473,1741441846821,-500.0,8.219e-05,2]
[355655474,1741441846831,-519.93867907,8.219e-05,2]
[355655475,1741441846840,-500.0,8.219e-05,2]
[355655476,1741441846851,-568.33,8.219e-05,2]
[355655477,1741441846862,-500.0,8.219e-05,2]
[355655478,1741441846872,-826.69,8.219e-05,2]
[355655479,1741441846882,-575.35726622,8.219e-05,2]
[355655480,1741441846892,-500.0,8.219e-05,2]
[355655481,1741441846902,-594.88,8.219e-05,2]
[355655482,1741441846912,-500.0,8.219e-05,2]
[355655483,1741441846922,-500.0,8.219e-05,2]
[355655484,1741441846932,-587.89,8.219e-05,2]
[355655485,1741441846942,-500.0,8.219e-05,2]
[355655486,1741441846951,-500.0,8.219e-05,2]
[355655487,1741441846959,-529.01,8.219e-05,2]
[355655488,1741441846969,-500.0,8.219e-05,2]
[355655489,1741441846978,-200.0,8.219e-05,2]
[355655490,1741441846988,-758.12,8.219e-05,2]
[355655491,1741441846998,-501.30663134,8.219e-05,2]
[355655492,1741441847008,-500.0,8.219e-05,2]
[355655493,1741441847017,-878.38,8.219e-05,2]
[355655494,1741441847027,-500.0,8.219e-05,2]
[355655495,1741441847036,-501.17540315,8.219e-05,2]
[355655496,1741441847046,-500.0,8.219e-05,2]
[355655497,1741441847055,-517.13,8.219e-05,2]
[355655498,1741441847065,-1077.6,8.219e-05,2]
[355655499,1741441847074,-1736.05,8.219e-05,2]
[355655500,1741441847083,-500.0,8.219e-05,2]
[355655501,1741441847092,-500.0,8.219e-05,2]
[355655502,1741441847105,-516.75682093,8.219e-05,2]
[355655503,1741441847114,-606.81,8.219e-05,2]
[355655504,1741441847124,-787.07,8.219e-05,2]
[355655505,1741441847134,-692.25,8.219e-05,2]
[355655506,1741441847143,-500.0,8.219e-05,2]
[355655507,1741441847152,-500.0,8.219e-05,2]
[355655508,1741441847162,-508.36467708,8.219e-05,2]
[355655509,1741441847171,-500.0,8.219e-05,2]
[355655510,1741441847181,-500.0,8.219e-05,2]
[355655511,1741441847192,-870.01,8.219e-05,2]
[355655512,1741441847203,-500.0,8.219e-05,2]
[355655513,1741441847213,-513.43014085,8.219e-05,2]
[355655514,1741441847223,-844.12,8.219e-05,2]
[355655515,1741441847232,-500.0,8.219e-05,2]
[355655516,1741441847241,-509.79387847,8.219e-05,2]
[355655517,1741441847251,-500.0,8.219e-05,2]
[355655518,1741441847260,-500.0,8.219e-05,2]
[355655519,1741441847270,-500.0,8.219e-05,2]
[355655520,1741441847279,-500.0,8.219e-05,2]
[355655521,1741441847288,-860.73,8.219e-05,2]
[355655522,1741441847298,-500.0,8.219e-05,2]
[355655523,1741441847308,-514.86589591,8.219e-05,2]
[355655524,1741441847318,-500.0,8.219e-05,2]
[355655525,1741441847328,-500.0,8.219e-05,2]
[355655526,1741441847337,-500.0,8.219e-05,2]
[355655527,1741441847347,-527.53288551,8.219e-05,2]
[355655528,1741441847358,-500.0,8.219e-05,2]
[355655529,1741441847368,-605.30131378,8.219e-05,2]